Cogmind - Beta 17 @@@ ROGUE MODE // 2026.07.18 @ 08:37:51 Player: Smol John Result: Destroyed by SX-M7P(R) with Subdweller Laser Performance ------------- Evolutions (0) 0 Regions Visited (2) 400 Robots Destroyed (16) 80 Value Destroyed (397) 397 Prototype IDs (0) 0 Alien Tech Used (0) 0 Bonus (0) 0 TOTAL SCORE: 877 Bonus ------- None Cogmind --------- Core Integrity 0/250 Matter 296/300 Energy 98/100 System Corruption 0% Temperature Cool (6) Movement Rolling (107) Ox1 Location -10/Subcaves Parts ------- > --- POWER (1) -------- (None) > --- PROPULSION (2) --- Wheel Subdweller Monowheel > --- UTILITY (2) ------ Large Storage Unit Makeshift Light Armor Plating > --- WEAPON (2) ------- Subdweller Machine Gun Makeshift Axe > --- INVENTORY (15) --- Light Ion Engine Aluminum Leg Small Storage Unit Medium Storage Unit Visual Processing Unit Improved Terrain Scanner EM Pulse Gun Subdweller Beam Cannon Grenade Launcher Peak State ------------ > --- POWER ------------ Light Ion Engine > --- PROPULSION ------- Aluminum Leg Wheel > --- UTILITY ---------- Large Storage Unit Makeshift Light Armor Plating > --- WEAPON ----------- Subdweller Machine Gun Makeshift Axe > --- INVENTORY -------- Small Storage Unit Medium Storage Unit Visual Processing Unit Improved Terrain Scanner EM Pulse Gun Subdweller Beam Cannon Grenade Launcher [Rating: 15] Favorites ----------- Power Subdweller Power Source Engine Subdweller Power Source Propulsion Aluminum Leg Leg Aluminum Leg Wheel Wheel Utility Large Storage Unit Device Subdweller Optics Storage Large Storage Unit Protection Makeshift Light Armor Plating Weapon Subdweller Machine Gun Energy Cannon Subdweller Beam Cannon Ballistic Gun Subdweller Machine Gun Slashing Weapon Makeshift Axe Build | -11 -10 -10 ------- Run | Yrd Mat Sub Slots Evolved . | . . . Power . | . . . Propulsion . | . . . Utility . | . . . Weapon . | . . . Parts Attached 24 | 7 2 15 Power 5 | 1 . 4 Engine 5 | 1 . 4 Core . | . . . Reactor . | . . . Propulsion 7 | 2 . 5 Treads . | . . . Leg 2 | 2 . . Wheel 5 | . . 5 Hover . | . . . Flight . | . . . Utility 7 | 2 2 3 Device 3 | 1 1 1 Storage 3 | 1 1 1 Processor . | . . . Hackware . | . . . Protection 1 | . . 1 Artifact . | . . . Weapon 5 | 2 . 3 Energy Gun . | . . . Energy Cannon 1 | . . 1 Ballistic Gun 3 | 2 . 1 Ballistic Cannon . | . . . Launcher . | . . . Special Weapon . | . . . Impact Weapon . | . . . Slashing Weapon 1 | . . 1 Piercing Weapon . | . . . Special Melee Weapon . | . . . Unidentified Prototypes . | . . . Parts Lost 3 | . . 3 Power 1 | . . 1 Propulsion 2 | . . 2 Utility . | . . . Weapon . | . . . Highest Loss Streak 2 | . . 2 To Critical Strikes . | . . . Average Backups 7 | 4 6 8 Power . | . 1 . Propulsion 1 | 2 2 . Utility 3 | . 1 4 Weapon 2 | . 1 2 Tool/Special . | . . . Unused Backups 7 | . 3 4 Power 1 | . . 1 Propulsion 3 | . 3 . Utility 1 | . . 1 Weapon 2 | . . 2 Tool/Special . | . . . Average Slot Usage (%) 93 | . 100 92 Engine 13 | . 14 13 Leg 9 | . 28 6 Wheel 17 | . . 19 Device 7 | . 14 6 Storage 14 | . 14 14 Protection 2 | . . 3 Energy Cannon 6 | . . 7 Ballistic Gun 16 | . 28 14 Slashing Weapon 4 | . . 5 Peak Build Rating 15 | 9 9 15 Average Rating 11 | 5 8 12 On Entrance 5 | . 9 8 Avg Prop Armor Cover (%) 9 | . . 9 Naked Turns . | . . . Heaviest Build 39 | 14 19 39 Greatest Support 40 | 20 20 40 Greatest Overweight (x) 3 | . . 3 Average Overweight (x) 1 | . . 1 Largest Inventory Capacity 15 | 8 10 15 Average Capacity 12 | 7 8 13 Most Carried 10 | 8 8 10 Average Carried 7 | 4 6 8 Final Capacity 15 | 8 10 15 Final Carried 9 | 7 8 9 Class Distribution -------------------- 68% | Mutant 31% | Scavenger-Mutant Dominant Class ---------------- Mutant | -10/Materials Mutant | -10/Subcaves Resources | -11 -10 -10 ----------- Run | Yrd Mat Sub Matter Collected 555 | 274 58 223 Remotely . | . . . Salvage Created 502 | 45 84 373 Parts 34 | 4 10 20 Haulers Intercepted . | . . . Recyclers Shooed . | . . . Parts Field Recycled . | . . . Retrieved Matter . | . . . Parts Self-Destructed 3 | . . 3 Prevented . | . . . Parts Restored . | . . . Kills | -11 -10 -10 ------- Run | Yrd Mat Sub Combat Hostiles Destroyed 12 | . 2 10 Melee 1 | . . 1 Guns 6 | . 2 4 Cannons 5 | . . 5 Classes Destroyed 4 | 1 2 1 Tunneler 3 | 2 1 . Watcher 1 | . 1 . Swarmer 4 | . 2 2 Subdweller 8 | . . 8 Best Kill Streak 2 | 2 2 2 Combat Bots Only 2 | . 2 2 Max Kills in Single Turn 1 | 1 1 1 Gunslinging . | . . . Exploded . | . . . Melee 1 | . . 1 Uniques/NPCs Destroyed . | . . . Combat | -11 -10 -10 -------- Run | Yrd Mat Sub Hostile Shots Fired 61 | . 10 51 Missed 18 | . 2 16 Hits 43 | . 8 35 Projectile 43 | . 8 35 Damage Taken 774 | . 61 713 Core 267 | . 17 250 Absorbed by Shields . | . . . Core Remaining (%) 100 | 100 . . Volleys Fired 43 | 4 10 29 Largest 2 | 2 2 2 Hottest 110 | 40 40 110 Shots Fired 86 | 8 20 58 Gun 63 | 8 20 35 Cannon 23 | . . 23 Launcher . | . . . Special . | . . . Kinetic 63 | 8 20 35 Thermal 23 | . . 23 Explosive . | . . . Electromagnetic . | . . . Robot Hit Streak 16 | 3 2 16 Robot Miss Streak 3 | 3 3 2 Penetration Max . | . . . Secondary Targets 1 | . . 1 Max Gunslinging Chain 1 | . . 1 Shots Hit Robots 64 | 3 9 52 Core Hits 26 | 4 6 16 Critical Kills . | . . . Critical Parts Destroyed . | . . . Critical Strikes . | . . . Melee Attacks 21 | . . 21 Impact . | . . . Slashing 21 | . . 21 Piercing . | . . . Sneak Attacks . | . . . Combat Hostiles . | . . . Follow-up Attacks . | . . . Damage Inflicted 1407 | 37 96 1274 Guns 569 | 37 96 436 Cannons 459 | . . 459 Explosions . | . . . Melee 379 | . . 379 Ramming . | . . . Kinetic 569 | 37 96 436 Thermal 459 | . . 459 Explosive . | . . . Electromagnetic . | . . . Impact . | . . . Slashing 379 | . . 379 Piercing . | . . . Highest Corruption . | . . . Average Corruption . | . . . Corruption Purged . | . . . Corruption Blocked . | . . . Overload Shots . | . . . Overflow Damage 9 | . . 9 Projectiles 9 | . . 9 Explosions . | . . . Melee . | . . . Knockbacks . | . . . Impact . | . . . Kinetic . | . . . Secondary . | . . . Self-Inflicted Damage . | . . . Shots . | . . . Rammed . | . . . Targets Rammed 1 | . 1 . Kicked 1 | . 1 . Crushed . | . . . Highest Temperature 32 | . . 32 Average Temperature 13 | . . 13 Received Heat Transfer 132 | . . 132 Siege Activations . | . . . Martial Activations . | . . . Shielding Activations . | . . . Robots Disrupted . | . . . Combat Hostiles . | . . . Robots Corrupted . | . . . Combat Hostiles . | . . . Parts Fried . | . . . Impact Corruptions . | . . . Robots Melted . | . . . Combat Hostiles . | . . . Parts Melted 2 | . . 2 Heat Transferred 629 | . . 629 Parts Sabotaged . | . . . Parts Stolen . | . . . Parts Stripped . | . . . Power Chain Reactions . | . . . Alert | -11 -10 -10 ------- Run | Yrd Mat Sub Maximum Alert Level . | . . . Low Security (%) 100 | 100 100 . Level 1 . | . . . Level 2 . | . . . Level 3 . | . . . Level 4 . | . . . Level 5 . | . . . High Security . | . . . Max Security . | . . . Peak Influence 50 | 10 50 . Initial . | . . . Average 8 | 1 11 . Influence Increases 112 | 10 62 40 Destroy 0b10 Robot/C 80 | . 40 40 Destroy 0b10 Robot/NC 20 | 10 10 . Destroy Leader 12 | . 12 . Influence Decreases 112 | 10 62 40 Time Decay 112 | 10 62 40 Squads Dispatched 1 | . 1 . Investigation . | . . . Extermination . | . . . Reinforcement 1 | . 1 . Assault . | . . . Garrison . | . . . Intercept . | . . . Searches Triggered . | . . . Construction Impeded . | . . . Haulers Reinforced . | . . . Active Scanning Responses . | . . . Cargo Convoy Interrupts . | . . . Stealth | -11 -10 -10 --------- Run | Yrd Mat Sub Distress Signals 1 | . 1 . Communications Jammed . | . . . Distress Signals . | . . . Times Spotted 20 | . 8 12 Peak Tracking Total 5 | . 5 3 Tactical Retreats . | . . . Traps | -11 -10 -10 ------- Run | Yrd Mat Sub Traps Triggered . | . . . Indirectly . | . . . Trap Hack Attempts . | . . . Triggered . | . . . Disarmed . | . . . Reprogrammed . | . . . Reused . | . . . Traps Extracted . | . . . Installed . | . . . Triggered . | . . . Machines | -11 -10 -10 ---------- Run | Yrd Mat Sub Machines Disabled . | . . . Max in Single Turn . | . . . Machines Repaired . | . . . Machines Dismantled . | . . . Machines Sabotaged . | . . . Overloaded Fab Kills . | . . . Hacking | -11 -10 -10 --------- Run | Yrd Mat Sub Machines Accessed 2 | . 1 1 Terminals 1 | . 1 . Fabricators . | . . . Repair Stations . | . . . Recycling Units . | . . . Scanalyzers . | . . . Garrison Access . | . . . Total Hacks 5 | . 2 3 Successful 3 | . . 3 Failed 2 | . 2 . Catastrophic . | . . . Database Lockouts . | . . . Manual 2 | . 2 . Terminals 2 | . 2 . Fabricators . | . . . Repair Stations . | . . . Recycling Units . | . . . Scanalyzers . | . . . Garrison Access . | . . . Terminal Hacks 3 | . . 3 Record 3 | . . 3 Fabricator Hacks . | . . . Repair Station Hacks . | . . . Recycling Unit Hacks . | . . . Scanalyzer . | . . . Garrison Access Hacks . | . . . Unauthorized Hacks . | . . . Terminals . | . . . Fabricators . | . . . Repair Stations . | . . . Recycling Units . | . . . Scanalyzers . | . . . Garrison Access . | . . . Data Cores Recovered . | . . . Used . | . . . Hacking Detections 1 | . 1 . Full Trace Events . | . . . Feedback Events . | . . . Feedback Blocked . | . . . Robot Schematics Acquired . | . . . Robots Built . | . . . Authchips . | . . . Time . | . . . Total Robot Build Rating . | . . . Part Schematics Acquired . | . . . Parts Built . | . . . Authchips . | . . . Time . | . . . Total Part Build Rating . | . . . Part Studies Acquired . | . . . Parts Repaired . | . . . Time . | . . . Parts Recycled . | . . . Recycled Matter . | . . . Retrieved Matter . | . . . Retrieved Components . | . . . Parts Scanalyzed . | . . . Part Schematics Acquired . | . . . Parts Damaged . | . . . Bothacking | -11 -10 -10 ------------ Run | Yrd Mat Sub Used RIF Installer . | . . . Robots Hacked . | . . . Non-combat . | . . . Combat . | . . . Robot Hacks Applied . | . . . Relay Couplers Released . | . . . Fabnet Peak Effective % . | . . . Robots Rewired . | . . . Allies Hacked . | . . . Hacks Repelled . | . . . Allies | -11 -10 -10 -------- Run | Yrd Mat Sub Total Allies . | . . . Largest Group . | . . . Highest-Rated Group . | . . . Highest-Rated Ally . | . . . Total Orders . | . . . Ally Attacks . | . . . Total Damage . | . . . Kills . | . . . Allies Corrupted . | . . . Allies Melted . | . . . Intel | -11 -10 -10 ------- Run | Yrd Mat Sub Active Infowar (turns) 900 | 8 237 655 Optics 362 | . . 362 Terrain 230 | 8 222 . Seismic 308 | . 15 293 Robot Analysis Total . | . . . Derelict Logs Recovered 1 | . . 1 Drone Launches . | . . . Drone Recoveries . | . . . Exploration | -11 -10 -10 ------------- Run | Yrd Mat Sub Turns Passed 1897 | 96 237 1564 Spaces Moved 1387 | 60 165 1162 Core 6 | 6 . . Treads . | . . . Legs 270 | 54 165 51 Wheels 1111 | . . 1111 Hover . | . . . Flight . | . . . Fastest Speed 50 | 50 120 95 Average Speed 114 | 113 120 113 Slowest Speed 190 | 120 120 190 Overloaded Moves . | . . . Propulsion Burnouts . | . . . Robots Hopped . | . . . Potential Cave-ins . | . . . Cave-ins Triggered . | . . . Exploration Rate (%) 32 | 3 34 60 Regions Visited 2 Branch Regions 1 Pre-discovered Areas 2 | . . 2 Known Exits Taken . | . . . Unknown Exits Taken 2 | 1 1 . Scrap Searched 3 | . . 3 Spaces Dug . | . . . Terrain Destroyed 2 | . . 2 Melee . | . . . Projectile 2 | . . 2 AOE . | . . . Terrain Rammed . | . . . Walls Destroyed . | . . . Machines Disabled . | . . . Actions | -11 -10 -10 --------- Run | Yrd Mat Sub Total 1595 | 78 186 1331 Wait 90 | . 3 87 Move 1385 | 59 164 1162 Hop . | . . . Pick Up 15 | 8 3 4 Fast Attach 13 | 6 . 7 Attach 5 | 1 . 4 Detach 2 | . . 2 Swap 7 | . 2 5 Drop 13 | . 3 10 Fire 43 | 4 10 29 Melee 21 | . . 21 Ram . | . . . Kick 1 | . 1 . Crush . | . . . Escape Stasis . | . . . Rewire . | . . . Trap . | . . . Miscellaneous . | . . . Route ------- -11/Scrapyard -10/Materials -10/Subcaves History --------- Turn | Location | Event 21 | -11/Scrapyard | Discovered new exit (range 16) 97 | -11/Scrapyard | Entered Materials 307 | -10/Materials | Build established: Mutant 327 | -10/Materials | Discovered new exit (range 8) 334 | -10/Materials | Entered Subcaves 340 | -10/Subcaves | Learned location of Zion (-6) 688 | -10/Subcaves | Visited Clippyterm 691 | -10/Subcaves | Learned 40 Factory zone layouts 700 | -10/Subcaves | Build established: Scavenger-Mutant 881 | -10/Subcaves | Ambushed by Subdwellers from Twisted Machinery 898 | -10/Subcaves | Core integrity fell below 50% 1321 | -10/Subcaves | Build established: Mutant 1494 | -10/Subcaves | Shifting Twisted Machinery released Sub. Machine Gun 1505 | -10/Subcaves | Shifting Twisted Machinery released Sub. Machine Gun 1653 | -10/Subcaves | A swath of the cavern ceiling suddenly collapsed 1682 | -10/Subcaves | Met a Zionite searching for "candidates" 1825 | -10/Subcaves | Core integrity fell below 20% 1898 | -10/Subcaves | Destroyed by SX-M7P(R) with Subdweller Laser Last Messages --------------- Sub. Machine Gun falls loose from the Twisted Machinery. 01535_ Acquired Mak. Light Armor Plating. 01607_ Acquired Wheel. A swath of the cavern ceiling suddenly collapses. 01681_ IY-RRZ(z): "She is not going to be happy we haven't found any suitable candidates yet." 01682_ IY-RRZ(z): "Hey you! It's really dangerous down here, I feel that you could die at any moment. For your health and safety might I suggest a trip to Zion?" World map confirmed: -6/Zion. 01826_ Wheel destroyed. 01828_ Lgt. Ion Engine destroyed. 01832_ CR-KCL(R) destroyed. 01834_ Acquired 40 matter. 01836_ Acquired Sub. Monowheel. 01838_ Acquired 6 matter. 01894_ Destroyed Scrap Shield. Map ----- +----------------------------------------------------+ | ###???? ## #?????????????? | | #?????? ## ### #?# ???????????? | | ##????# ?# ?## #?? #####??????????? | | ###### ## ## #???#??????????????? | | ### #??????????????????? | | # #??# #######?##?????????? | | ## ### #??# # # ##????????? | | ?## ##?# #??# #???????? | | ??###??# ##??# #??????? | | ???????###???## ### # # ##???????? | | ??????????????## ??# ### #????????????? | | ???????????????## ??## ##?###????????????? | | ????????????????# ???# #### ##????????????? | | ???????????????## ??## ## #????????????? | | ???????????????# ?## #?????????????? | | ???????????????# ## ##????????????? | | ???????????????# #????????????? | | ??????????????## ### #####?????????? | | ??????????????# #### #?????????? | | ???????????????# ### ###?????????? | | ???????????????## ###???????????? | | ????????????????### #####?????????????? | | ??????????????????## ##?????????????????? | | ???????????????????#### ##???????????####??? | | ????????????###???????## ##?????????## #??? | | ??????????? ##??????# @ ##????????# #??? | | ??????????? #???### R #????????# #??? | | ??????????? #?## ##??????## ##?? | | ?????????????# ## ###???## #?? | | ???????????????# #####[ #?? | | ???????????????## ! #?? | | ????????????????## ## ! ### | | ?????????????????# ## [ # | | ?????????????????# | | ?????????????????## ## ### | | ????????????###???## ##### #?# | | ???????????## ##??# #???# ##### | | ???????????# #### ####???####### ##? | | ???????????# ## #????????????## #?# | | ???????????# #????????????# #??# | | ??????????## ##?? ????????## ## #??? | | ??????????# #### ##??? ?? #???# ####??? | | ??????????## #### ##??? ##?# ######?? | | ???????????### #???"""" """"#?## ### ##? | | ????????????## #?##"""" """ #?# ## ## | | ????????????# ###""""" ### | | ?????????#### ### ### """"" " " | | ????????## ### ## "" """[ "" | | ???????## #### """"""" " | | ???????# ### """""" "" ##### | +----------------------------------------------------+ Best States ------------- Heat Dissipation 25 Energy Generation 15 Energy Capacity 250 Matter Stores 300 Matter Capacity 300 Sight Range 21 Terrain Scan Range 16 Terrain Scan Density 10 Armor Coverage 100 Evasion (%) 55 Item Schematics ----------------- None Robot Schematics ------------------ None Fabricated ------------ Nothing Repaired ---------- Nothing Studied --------- None Alien Tech Used ----------------- None Achievements -------------- None Challenges ------------ None Game ------ Seed DynamicBladeAnalyzer Manual? 0 Play Time 00:16:55 Cumulative 37.1 hours Start 2026.07.18 @ 08:24:26 End 2026.07.18 @ 08:37:51 Sessions 1 Manual Loads 0 Difficulty Rogue Special Mode None Game No. 53 Rogue 53 Adventurer 0 Explorer 0 Win Type - Total 1 Types 1/0/0/0/0/0/0/0/0/0 Lore% 30 Gallery% 31 Achievement% 24 Wizard Run 0 Options --------- Layout 1 ASCII 0 Keyboard 0 Movement Numpad Keybinds 0 Fullscreen 1 Font 20/SmallcapsGlow Map View 50x35 Zoom Use 0% Tactical HUD 1 Map Filters NONE Filters NONE Steam 1 RUN: 18f01da1-6819-4750-9c87-0fddb4a8ddd7